Cogmind - Beta 11.1 @@@ ROGUE MODE // 2022.06.27 @ 15:18:43 Player: lumberblack Result: Destroyed by Y-45 Defender with Beam Rifle Performance ------------- Evolutions (1) 500 Regions Visited (3) 600 Robots Destroyed (25) 125 Value Destroyed (434) 434 Prototype IDs (5) 100 Alien Tech Used (0) 0 Bonus (-138) -138 TOTAL SCORE: 1621 Bonus ------- High Alert Combat Kills 14 Friendly Fire -152 Cogmind --------- Core Integrity 0/400 Matter 228/300 Energy 100/100 System Corruption 0% Temperature Cool (9) Movement Core (50) Location -9/Materials Parts ------- > --- POWER (1) -------- (None) > --- PROPULSION (3) --- (None) > --- UTILITY (3) ------ Machine Analyzer Improved Targeting Computer > --- WEAPON (2) ------- Mini Grenade Launcher > --- INVENTORY (5) ---- High-capacity Storage Unit Improved Signal Interpreter Improved Light Armor Plating Rocket Launcher Axe Peak State ------------ > --- POWER ------------ (None) > --- PROPULSION ------- Light Treads Light Treads > --- UTILITY ---------- Machine Analyzer Seismic Detector Targeting Computer > --- WEAPON ----------- Light Assault Rifle Light Assault Rifle > --- INVENTORY -------- Improved Signal Interpreter Hardened Medium Armor Plating Improved Light Armor Plating Rocket Launcher Rocket Launcher [Rating: 10] Favorites ----------- Power Ion Engine Engine Ion Engine Propulsion Light Treads Treads Light Treads Leg Aluminum Leg Utility Targeting Computer Device Seismic Detector Storage Small Storage Unit Processor Targeting Computer Weapon Light Assault Rifle Energy Gun Small Laser Ballistic Gun Light Assault Rifle Launcher Mini Grenade Launcher Special Weapon Mining Laser Build | -11 -10 -10 -9 ------- Run | Scr Mat Min Mat Slots Evolved 2 | . . . 2 Power . | . . . . Propulsion 1 | . . . 1 Utility 1 | . . . 1 Weapon . | . . . . Parts Attached 22 | 2 13 1 6 Power . | . . . . Engine . | . . . . Core . | . . . . Reactor . | . . . . Propulsion 2 | 2 . . . Treads 2 | 2 . . . Leg . | . . . . Wheel . | . . . . Hover . | . . . . Flight . | . . . . Utility 4 | . 2 . 2 Device 1 | . 1 . . Storage . | . . . . Processor 3 | . 1 . 2 Hackware . | . . . . Protection . | . . . . Artifact . | . . . . Weapon 16 | . 11 1 4 Energy Gun 2 | . 1 . 1 Energy Cannon . | . . . . Ballistic Gun 7 | . 5 1 1 Ballistic Cannon . | . . . . Launcher 4 | . 2 . 2 Special Weapon 3 | . 3 . . Impact Weapon . | . . . . Slashing Weapon . | . . . . Piercing Weapon . | . . . . Special Melee Weapon . | . . . . Unidentified Prototypes . | . . . . Parts Lost 5 | . . . 5 Power . | . . . . Propulsion 2 | . . . 2 Utility 2 | . . . 2 Weapon 1 | . . . 1 Highest Loss Streak 4 | . . . 4 To Critical Strikes . | . . . . Average Slot Usage (%) 72 | . 72 85 57 Treads 24 | . 28 28 10 Device 5 | . 2 14 6 Processor 15 | . 13 14 23 Energy Gun 5 | . 10 . . Ballistic Gun 17 | . 15 28 12 Launcher 1 | . . . 4 Naked Turns . | . . . . Heaviest Build 6 | 3 6 3 3 Greatest Support 3 | 3 3 3 3 Greatest Overweight (x) 1 | . 1 . . Average Overweight (x) . | . . . . Largest Inventory Capacity 8 | 8 5 5 5 Average Capacity 5 | 5 5 5 5 Most Carried 6 | 6 5 5 5 Average Carried 4 | 1 4 4 4 Final Capacity 5 | 5 5 5 5 Final Carried 5 | 3 5 5 5 Class Distribution -------------------- 100% | Mutant Dominant Class ---------------- Mutant | -10/Materials Mutant | -10/Mines Mutant | -9/Materials Resources | -11 -10 -10 -9 ----------- Run | Scr Mat Min Mat Matter Collected 498 | 238 178 20 62 Remotely . | . . . . Salvage Created 450 | 41 250 65 94 Parts 48 | 7 19 3 19 Haulers Intercepted . | . . . . Recyclers Shooed . | . . . . Parts Field Recycled . | . . . . Retrieved Matter . | . . . . Parts Self-Destructed . | . . . . Prevented . | . . . . Kills | -11 -10 -10 -9 ------- Run | Scr Mat Min Mat Combat Hostiles Destroyed 16 | . 11 . 5 Guns 9 | . 8 . 1 AOE 7 | . 3 . 4 Classes Destroyed 6 | 1 2 . 3 Worker 1 | . . . 1 Tunneler 4 | 2 . 1 1 Operator 2 | . . . 2 Watcher 1 | . . . 1 Swarmer 10 | . 6 . 4 Grunt 6 | . 5 . 1 Thug 1 | . . 1 . Best Kill Streak 8 | 1 3 1 8 Combat Bots Only 4 | . 3 . 4 Max Kills in Single Turn 4 | 1 2 1 4 Gunslinging . | . . . . Exploded 3 | . 2 . 3 Melee . | . . . . Uniques/NPCs Destroyed . | . . . . Combat | -11 -10 -10 -9 -------- Run | Scr Mat Min Mat Damage Taken 1123 | . 472 10 641 Core 513 | . 108 . 405 Absorbed by Shields . | . . . . Core Remaining (%) 78 | 100 . 56 . Volleys Fired 57 | 6 34 3 14 Largest 2 | 2 2 2 2 Hottest 100 | 60 100 40 40 Shots Fired 99 | 12 61 6 20 Gun 84 | 12 54 6 12 Cannon . | . . . . Launcher 10 | . 2 . 8 Special 5 | . 5 . . Kinetic 50 | 6 26 6 12 Thermal 39 | 6 33 . . Explosive 10 | . 2 . 8 Electromagnetic . | . . . . Robot Hit Streak 8 | 7 8 5 6 Robot Miss Streak 2 | 2 2 1 1 Penetration Max . | . . . . Secondary Targets . | . . . . Shots Hit Robots 61 | 7 39 5 10 Core Hits 39 | 2 19 5 13 Critical Kills . | . . . . Critical Parts Destroyed . | . . . . Critical Strikes 1 | . 1 . . Burn 1 | . 1 . . Melee Attacks . | . . . . Impact . | . . . . Slashing . | . . . . Piercing . | . . . . Sneak Attacks . | . . . . Combat Hostiles . | . . . . Follow-up Attacks . | . . . . Damage Inflicted 1227 | 84 536 55 552 Guns 618 | 84 413 52 69 Cannons . | . . . . Explosions 603 | . 123 . 480 Melee . | . . . . Ramming 6 | . . 3 3 Kinetic 392 | 41 230 52 69 Thermal 226 | 43 183 . . Explosive 603 | . 123 . 480 Electromagnetic . | . . . . Impact . | . . . . Slashing . | . . . . Piercing . | . . . . Highest Corruption . | . . . . Average Corruption . | . . . . Corruption Purged . | . . . . Corruption Blocked . | . . . . Overload Shots . | . . . . Overflow Damage 55 | . 4 . 51 Projectiles . | . . . . Explosions 55 | . 4 . 51 Melee . | . . . . Knockbacks . | . . . . Impact . | . . . . Kinetic . | . . . . Secondary . | . . . . Self-Inflicted Damage 126 | . 4 . 122 Shots 3 | . 1 . 2 Rammed 2 | . . 1 1 Targets Rammed 3 | . . 2 1 Kicked . | . . . . Crushed 1 | . . 1 . Highest Temperature 168 | 15 168 . . Average Temperature 80 | 10 83 . . Received Heat Transfer 483 | . 246 . 237 Siege Activations . | . . . . Robots Corrupted . | . . . . Combat Hostiles . | . . . . Parts Fried . | . . . . Impact Corruptions . | . . . . Robots Melted . | . . . . Combat Hostiles . | . . . . Parts Melted . | . . . . Heat Transferred 621 | 100 521 . . Parts Sabotaged . | . . . . Parts Stolen . | . . . . Parts Stripped . | . . . . Power Chain Reactions . | . . . . Missiles Intercepted . | . . . . Alert | -11 -10 -10 -9 ------- Run | Scr Mat Min Mat Peak Influence 709 | 10 463 234 709 Initial 133 | . 6 133 91 Average 185 | 4 183 156 283 Maximum Alert Level 3 | . 2 1 3 Low Security (%) 64 | 100 54 90 50 Level 1 23 | . 33 9 22 Level 2 10 | . 11 . 23 Level 3 . | . . . 2 Level 4 . | . . . . Level 5 . | . . . . High Security . | . . . . Max Security . | . . . . Squads Dispatched 8 | . 4 1 3 Investigation 4 | . 2 1 1 Extermination . | . . . . Reinforcement 4 | . 2 . 2 Assault . | . . . . Garrison . | . . . . Intercept . | . . . . Searches Triggered . | . . . . Construction Impeded . | . . . . Haulers Reinforced . | . . . . Active Scanning Responses . | . . . . Cargo Convoy Interrupts . | . . . . Stealth | -11 -10 -10 -9 --------- Run | Scr Mat Min Mat Distress Signals 4 | . 2 . 2 Communications Jammed . | . . . . Distress Signals . | . . . . Times Spotted 60 | . 22 14 24 Peak Tracking Total 13 | . 8 13 12 Tactical Retreats 6 | . 2 1 3 Traps | -11 -10 -10 -9 ------- Run | Scr Mat Min Mat Traps Triggered . | . . . . Indirectly . | . . . . Trap Hack Attempts . | . . . . Triggered . | . . . . Disarmed . | . . . . Reprogrammed . | . . . . Reused . | . . . . Traps Extracted . | . . . . Installed . | . . . . Triggered . | . . . . Machines | -11 -10 -10 -9 ---------- Run | Scr Mat Min Mat Machines Disabled 4 | . . . 4 Max in Single Turn 1 | . . . 1 Machines Sabotaged . | . . . . Garrisons Compromised . | . . . . Overloaded Fab Kills . | . . . . Hacking | -11 -10 -10 -9 --------- Run | Scr Mat Min Mat Machines Accessed 14 | . 7 2 5 Terminals 9 | . 5 1 3 Fabricators . | . . . . Repair Stations . | . . . . Recycling Units 3 | . 2 . 1 Scanalyzers 1 | . . . 1 Garrison Access . | . . . . Total Hacks 41 | . 25 6 10 Successful 22 | . 14 2 6 Failed 18 | . 10 4 4 Catastrophic 2 | . 1 . 1 Database Lockouts 1 | . 1 . . Manual 30 | . 18 5 7 Terminals 33 | . 22 5 6 Fabricators . | . . . . Repair Stations . | . . . . Recycling Units 5 | . 3 . 2 Scanalyzers 2 | . . . 2 Garrison Access . | . . . . Terminal Hacks 13 | . 11 2 . Robot Analysis 5 | . 4 1 . Prototype ID Bank 4 | . 4 . . Open Door 1 | . . 1 . Branch Access Points 1 | . 1 . . Alert Level 1 | . 1 . . Locate Traps 1 | . 1 . . Fabricator Hacks . | . . . . Repair Station Hacks . | . . . . Recycling Unit Hacks . | . . . . Scanalyzer 2 | . . . 2 Insert Component 1 | . . . 1 Analyze 1 | . . . 1 Garrison Access Hacks . | . . . . Unauthorized Hacks 7 | . 3 . 4 Terminals 3 | . 1 . 2 Track 2 | . 1 . 1 Disrupt 1 | . . . 1 Fabricators . | . . . . Repair Stations . | . . . . Recycling Units 4 | . 2 . 2 Recyclers 1 | . . . 1 Tunnel 3 | . 2 . 1 Scanalyzers . | . . . . Garrison Access . | . . . . Data Cores Recovered 1 | . . . 1 Used . | . . . . Hacking Detections 9 | . 5 1 3 Full Trace Events . | . . . . Feedback Events . | . . . . Feedback Blocked . | . . . . Robot Schematics Acquired . | . . . . Robots Built . | . . . . Authchips . | . . . . Time . | . . . . Total Robot Build Rating . | . . . . Part Schematics Acquired 1 | . . . 1 Parts Built . | . . . . Authchips . | . . . . Time . | . . . . Total Part Build Rating . | . . . . Parts Repaired . | . . . . Time . | . . . . Parts Recycled . | . . . . Recycled Matter . | . . . . Retrieved Matter . | . . . . Retrieved Components . | . . . . Parts Scanalyzed 1 | . . . 1 Part Schematics Acquired 1 | . . . 1 Parts Damaged . | . . . . Bothacking | -11 -10 -10 -9 ------------ Run | Scr Mat Min Mat Used RIF Installer . | . . . . Robots Hacked . | . . . . Non-combat . | . . . . Combat . | . . . . Robot Hacks Applied . | . . . . Relay Couplers Released . | . . . . Fabnet Peak Effective % . | . . . . Robots Rewired . | . . . . Allies Hacked . | . . . . Hacks Repelled . | . . . . Allies | -11 -10 -10 -9 -------- Run | Scr Mat Min Mat Total Allies . | . . . . Largest Group . | . . . . Highest-Rated Group . | . . . . Highest-Rated Ally . | . . . . Total Orders . | . . . . Ally Attacks . | . . . . Total Damage . | . . . . Kills . | . . . . Allies Corrupted . | . . . . Allies Melted . | . . . . Intel | -11 -10 -10 -9 ------- Run | Scr Mat Min Mat Robot Analysis Total 5 | . 4 1 . Derelict Logs Recovered 1 | . . 1 . Drone Launches . | . . . . Drone Recoveries . | . . . . Exploration | -11 -10 -10 -9 ------------- Run | Scr Mat Min Mat Turns Passed 934 | 64 465 212 193 Spaces Moved 1055 | 77 358 330 290 Core 1055 | 77 358 330 290 Treads . | . . . . Legs . | . . . . Wheels . | . . . . Hover . | . . . . Flight . | . . . . Fastest Speed 50 | 50 50 50 50 Average Speed 50 | 50 50 50 50 Slowest Speed 100 | 50 100 50 50 Overloaded Moves . | . . . . Propulsion Burnouts . | . . . . Robots Hopped . | . . . . Cave-ins Triggered . | . . . . Exploration Rate (%) 42 | 4 47 70 50 Regions Visited 3 Branch Regions 1 Pre-discovered Areas 3 | . 2 . 1 Known Exits Taken 1 | . 1 . . Unknown Exits Taken 2 | 1 . 1 . Scrap Searched 1 | . . 1 . Spaces Dug 3 | . 3 . . Terrain Destroyed 79 | . 15 . 64 Melee . | . . . . Projectile 5 | . 5 . . AOE 74 | . 10 . 64 Terrain Rammed . | . . . . Walls Destroyed . | . . . . Machines Disabled . | . . . . Actions | -11 -10 -10 -9 --------- Run | Scr Mat Min Mat Total 1357 | 93 574 372 318 Wait 182 | . 154 27 1 Move 1052 | 76 357 329 290 Hop . | . . . . Pick Up 17 | 2 8 5 2 Fast Attach 8 | . 4 . 4 Attach 3 | 2 1 . . Detach . | . . . . Swap 11 | . 8 1 2 Drop 24 | 7 8 5 4 Fire 57 | 6 34 3 14 Melee . | . . . . Ram . | . . . . Kick . | . . . . Crush 3 | . . 2 1 Escape Stasis . | . . . . Rewire . | . . . . Trap . | . . . . Miscellaneous . | . . . . Route ------- -11/Scrapyard -10/Materials (discovered 3 exits: *Mat / *Min x2) -10/Mines (discovered 2 exits: *Mat x2) -9/Materials (discovered 3 exits: [*Mat x2] / [*Sto]) History --------- Turn | Location | Event 7 | -11/Scrapyard | Discovered new exit (range 3) 65 | -11/Scrapyard | Entered Materials 319 | -10/Materials | Identified exit to Mines 320 | -10/Materials | Build established: Mutant 424 | -10/Materials | Discovered new exit (range 10) 523 | -10/Materials | Central database locked down 530 | -10/Materials | Entered Mines 558 | -10/Mines | Learned Materials garrison access intel 561 | -10/Mines | Met a Derelict shopkeep closing up shop 653 | -10/Mines | Discovered new exit (range 3) 676 | -10/Mines | Discovered new exit (range 5) 718 | -10/Mines | Assembled infested the area 742 | -10/Mines | Entered Materials 742 | -9/Materials | Evolved 2 slots: Propulsion x1, Utility x1 857 | -9/Materials | Discovered new exit (range 3) 886 | -9/Materials | Lost 4 parts (2n1u1w) 892 | -9/Materials | Core integrity fell below 50% 892 | -9/Materials | Discovered new exit (range 12) 910 | -9/Materials | Discovered new exit (range 14) 916 | -9/Materials | Core integrity fell below 20% 935 | -9/Materials | Destroyed by Y-45 Defender with Beam Rifle Last Messages --------------- 00900_ Terminal x2 00901_ O-16 Technician: "IFF HANDSHAKE FAILED. SECURING TERMINAL." 00902_ >> Machine Analyzer network decryption results: 00902_ Terminal x1 00902_ Connecting with Terminal... 00905_ Terminal disabled. 00905_ O-16 Technician destroyed. 00910_ Acquired 9 matter. 00910_ EXIT=FOUND 00910_ K-01 Serf collects debris. 00913_ >> Machine Analyzer network decryption results: 00913_ Terminal x1 00916_ The unstable cave ceiling collapses. 00916_ K-01 Serf collects debris. 00918_ Processing Tank disabled. 00921_ Connecting with Terminal... >>Trojan(Track) Trojan loaded successfully. Testing... Tracking enabled and active. Map ----- +----------------------------------------------------+ | S????????????????????????????????????????????????? | | ""???????????????????????????????????????????????? | | ""???????????????????????????????????????????????? | | ?????????????????????????????????????????????????? | | ?????????????????????????????????????????????????? | | ?????????????????????????????????????????????????? | | ?????????????????????????????????????????????????? | | ?????????????????????????????????????????????????? | | ?????????????????????????????????????????????????? | | ?????????????????????????????????????????????????? | | ?????????????????????????????????????????????????? | | ?????????????????????????????????????????????????? | | ?????????????????????????????????????????????????? | | ?????????"""?????????????????????????????????????? | | ?????????"""?????????????????"""???T?????????????? | | ?????????"""?????????????????"""?????????????????? | | ?????????????????????????????"""?????????????????? | | ??? #????"""?????????????????????????????????????? | | # #????"""?????????????????????????????????????? | | #????"""?????????????????????????????????????? | | #????????????????????????????????????????????? | | #????###+##?????????????+#???????????????????? | | #####????# ##+########## ##?????????"""??????? | | ?????????# ########??"R"??????? | | ?????????# Y ???"?"??????? | | ?????????# g @ #??????????????????? | | ?????????# ### ### ###########?????????????? | | ??????????????####+### # """ #?????????????? | | ??????????????# # + """ "T" #?????????????? | | ??????????????+ + # "" #?????????????? | | ??????????????# """ # + """ t #?????????????? | | #########?????# """ # ### """ #?????????????? | | #?????# """ |# #?# """ #?????????????? | | """ +?????# # #?# #?????????????? | | """ R" #?????######## #?# Y ######+###????? | | """ """ #????????????# #?######### # # ###+## | | """ #????????????# #????????## # | | #????????????# #?????#### < | | #????????????# ??????# | | #????????????# ??????# """ / #####? | | #########?????????????#??????# """ = # ##????? | | #??????????????????????# """ ## #?????? | | " """ #??????????????????????# ## #?????? | | " """????????????????????????# """ ## #?????? | | " """????????????????????????# """ ## #?????? | | " """ #??????????????????????# """ ! ## #?????? | | #?????????????????????# ## ##????? | | #######??????????????????????######+### #????? | | #####?????????????????????????# "" #????? | | #"""#????????????????????????## T #????? | +----------------------------------------------------+ Best States ------------- Heat Dissipation 28 Energy Generation 5 Energy Capacity 100 Matter Stores 300 Matter Capacity 300 Sight Range 16 Terrain Scan Density 10 Evasion (%) 50 Targeting Accuracy 11 Recoil Reduction 2 Item Schematics ----------------- Hcp. Storage Unit | -9/Materials | Scanalyzed Robot Schematics ------------------ None Fabricated ------------ Nothing Alien Tech Used ----------------- None Achievements -------------- None Challenges ------------ None Game ------ Seed PortableCoilBrace Manual? 0 Play Time 00:19:24 Cumulative 380.8 hours Start 2022.06.27 @ 15:01:08 End 2022.06.27 @ 15:18:43 Sessions 1 Manual Loads 0 Difficulty Rogue Special Mode None Game No. 346 Rogue 346 Adventurer 0 Explorer 0 Win Type - Total 8 Types 5/1/2/0/0/0/0/0/0 Lore% 56 Gallery% 76 Achievement% 65 Wizard Run 0 Options --------- ASCII 0 Keyboard 0 Movement Numpad Keybinds 0 Fullscreen 2 Font 18/TerminusBold Map View 76x50 Tactical HUD 1 Map Filters NONE Filters NONE Steam 1 RUN: 73766343-39dc-4c4a-8e83-57d04d9f8aa1